bitfinex/quotes_ETHUSD_20240916
["timestamp","ask_amount","ask_price","bid_price","bid_amount"]
[1726487515511,0.45224889,2314.0,2313.7,1.50720704]
[1726487516035,0.45224889,2314.0,2313.8,0.132204]
[1726487516208,0.45224889,2314.0,2313.7,5.82928704]
[1726487516412,0.45224889,2314.0,2313.8,0.132204]
[1726487516609,0.45224889,2314.0,2313.7,5.82928704]
[1726487516795,0.45224889,2314.0,2313.8,0.5829287]
[1726487516993,0.45224889,2314.0,2313.8,0.7151327]
[1726487519251,4.3217,2313.9,2313.8,0.132204]
[1726487519453,4.3217,2313.9,2313.4,4.32255]
[1726487519669,4.32192,2313.8,2313.4,4.32255]
[1726487519805,4.32192,2313.8,2313.5,0.89238304]
[1726487521948,4.32192,2313.8,2313.5,0.1314561]
[1726487522392,4.32192,2313.8,2313.3,6.70411]
[1726487522748,4.3221,2313.7,2313.4,0.13128431]
[1726487523485,4.32226,2313.6,2313.5,0.13128431]
[1726487524051,4.32226,2313.6,2313.2,3.9660188]
[1726487524283,4.32247,2313.5,2313.3,0.13131462]
[1726487524694,4.32216,2313.7,2313.3,0.97336296]
[1726487525051,4.32246,2313.5,2313.3,0.97336296]
[1726487525257,4.32256,2313.5,2313.3,0.13131462]
[1726487525687,4.32266,2313.4,2313.0,3.2715194]
[1726487526024,4.32266,2313.4,2313.0,2.3661]
[1726487526856,4.32266,2313.4,2313.0,8.07556699]
[1726487527055,4.32246,2313.5,2313.0,10.01781751]
[1726487529297,4.32266,2313.4,2313.1,0.12720123]
[1726487529457,8.64509,2313.5,2313.1,0.12720123]
[1726487529656,4.32246,2313.5,2313.1,1.23224504]
[1726487530101,8.64505,2313.5,2313.1,1.23224504]
[1726487530460,4.32246,2313.5,2313.1,1.23224504]
[1726487530666,4.32246,2313.5,2313.2,0.98639756]
[1726487531097,4.32246,2313.5,2313.3,0.12720123]
[1726487531775,4.32246,2313.5,2313.1,6.64199]
[1726487531976,4.32246,2313.5,2313.4,0.12720123]
[1726487532276,4.32229,2313.6,2313.4,0.12775707]
[1726487532602,4.77441087,2313.7,2313.5,2.3661]
[1726487532807,4.77441087,2313.7,2313.5,2.49385707]
[1726487534571,0.45231087,2313.7,2313.5,2.49385707]
[1726487534812,0.45231087,2313.7,2313.6,0.24938571]
[1726487535174,0.45231087,2313.7,2313.6,4.69941288]
[1726487535377,4.32133,2314.1,2313.6,6.0400855]
[1726487535575,0.45229593,2314.0,2313.6,4.69941288]
[1726487535886,0.45229593,2314.0,2313.7,1.13878629]
[1726487536093,4.77381593,2314.0,2313.7,1.13878629]
[1726487536286,9.09549593,2314.0,2313.8,0.12769643]
[1726487536697,4.3217,2313.9,2313.5,2.3661]
[1726487536890,4.3217,2313.9,2313.5,3.55776094]
[1726487538028,4.77381593,2314.0,2313.5,7.88017094]
[1726487538176,0.45229593,2314.0,2313.5,7.88017094]
[1726487538513,4.32171,2313.9,2313.6,1.22027209]
[1726487538719,4.77382593,2314.0,2313.6,1.22027209]
[1726487539123,4.77382593,2314.0,2313.6,5.54251209]
[1726487539295,4.77382593,2314.0,2313.7,1.3422683]
[1726487539832,4.77382593,2314.0,2313.6,4.32224]
[1726487540579,4.77382593,2314.0,2313.5,6.68853]
[1726487541481,4.32191,2313.8,2313.5,2.3661]
[1726487541678,4.32191,2313.8,2313.5,3.12551494]
[1726487542930,4.32173,2313.9,2313.5,3.12551494]
[1726487544212,4.32173,2313.9,2313.5,7.44794494]
[1726487544520,4.32173,2313.9,2313.6,0.12741348]
[1726487546036,4.77382593,2314.0,2313.6,0.12741348]
[1726487546037,4.32189,2313.8,2313.6,0.12741348]
[1726487546244,4.32208,2313.7,2313.6,0.12741348]
[1726487546466,4.32208,2313.7,2313.3,2.4752]
[1726487546853,4.32208,2313.7,2313.4,0.12705974]
[1726487548776,4.32189,2313.8,2313.4,1.25186171]
[1726487549076,4.32189,2313.8,2313.4,0.12705974]
[1726487550854,4.7742037,2313.8,2313.4,0.12705974]
[1726487551756,9.0961837,2313.8,2313.4,0.12705974]
[1726487551967,4.7742037,2313.8,2313.4,0.12705974]
[1726487552499,4.7742037,2313.8,2313.4,1.34237365]
[1726487552867,9.0962437,2313.8,2313.4,1.34237365]
[1726487553062,4.7742037,2313.8,2313.4,1.34237365]
[1726487553264,0.4523137,2313.8,2313.5,2.3533]
[1726487553806,4.7742237,2313.8,2313.6,0.12705974]
[1726487557281,0.4523137,2313.8,2313.6,0.12705974]
[1726487557504,0.4523137,2313.8,2313.6,0.80734071]
[1726487560631,0.4523137,2313.8,2313.6,0.12705974]
[1726487567286,4.7742137,2313.8,2313.6,0.12705974]
[1726487570473,4.7742137,2313.8,2313.4,4.32261]
[1726487570854,4.7742137,2313.8,2313.5,0.12711027]
[1726487572370,0.4523137,2313.8,2313.5,0.12711027]
[1726487572772,0.4523137,2313.8,2313.6,2.4737]
[1726487573206,0.4523137,2313.8,2313.7,0.12711027]
[1726487573775,0.4523137,2313.8,2313.7,1.46877725]
[1726487574201,0.4523137,2313.8,2313.7,0.12711027]
[1726487578180,0.4523137,2313.8,2313.7,1.46943412]
[1726487580603,0.4523137,2313.8,2313.7,0.12711027]
[1726487580913,0.4523137,2313.8,2313.7,1.46967626]
[1726487582119,0.4523137,2313.8,2313.7,3.48329494]
[1726487582281,0.4523137,2313.8,2313.7,2.82154463]
[1726487583412,0.4523137,2313.8,2313.7,4.83487958]
[1726487583715,0.4523137,2313.8,2313.7,2.82154463]
[1726487584280,0.4523137,2313.8,2313.7,4.83504505]
[1726487584492,0.4523137,2313.8,2313.7,4.83468312]
[1726487585186,0.4523137,2313.8,2313.7,2.82126043]
[1726487585515,0.4523137,2313.8,2313.7,4.83475707]
[1726487585717,0.4523137,2313.8,2313.7,1.46939206]
[1726487586092,0.4523137,2313.8,2313.7,0.12711027]
[1726487586427,0.4523137,2313.8,2313.5,5.2278694]
[1726487586584,0.4523137,2313.8,2313.7,0.12701931]
[1726487586773,0.4523137,2313.8,2313.7,1.34247644]
[1726487586977,0.4523137,2313.8,2313.7,1.46949575]
[1726487587178,0.4523137,2313.8,2313.7,0.12701931]
[1726487587416,0.4523137,2313.8,2313.5,0.9054194]
[1726487587622,4.7742137,2313.8,2313.7,0.12701931]
[1726487587789,4.7742137,2313.8,2313.5,0.9054194]
[1726487587990,4.7742137,2313.8,2313.7,0.12701931]
[1726487588198,4.7742137,2313.8,2313.4,5.2279494]
[1726487588490,4.7742137,2313.8,2313.7,0.12701931]
[1726487589525,4.7742137,2313.8,2313.5,2.2606]
[1726487589711,4.7742137,2313.8,2313.6,1.34264572]
[1726487589877,4.7742137,2313.8,2313.5,2.2606]
[1726487590076,4.7742137,2313.8,2313.6,1.34264169]
[1726487590317,4.7742137,2313.8,2313.5,2.2606]
[1726487590520,4.7742137,2313.8,2313.6,1.34264862]
[1726487590726,4.7742137,2313.8,2313.5,2.2606]
[1726487591022,4.7742137,2313.8,2313.6,1.34267195]
[1726487591205,4.7742137,2313.8,2313.6,0.12701931]
[1726487593848,4.32208,2313.7,2313.6,0.12701931]
[1726487594030,4.32208,2313.7,2313.6,1.46960867]
[1726487594208,4.32208,2313.7,2313.6,0.12701931]
[1726487594529,4.32208,2313.7,2313.4,0.9054194]
[1726487594695,4.32208,2313.7,2313.6,0.12706984]
[1726487594893,4.32208,2313.7,2313.4,0.9054194]
[1726487595114,4.32208,2313.7,2313.6,0.12706984]
[1726487595720,4.32208,2313.7,2313.4,0.9054194]
[1726487596036,4.32208,2313.7,2313.5,3.35664087]
[1726487596197,4.32208,2313.7,2313.5,0.12706984]
[1726487596397,4.32208,2313.7,2313.3,0.9054194]
[1726487596597,4.32208,2313.7,2313.6,0.12706984]
[1726487596793,4.7742137,2313.8,2313.3,7.48548723]
[1726487597005,9.0962137,2313.8,2313.6,0.12706984]
[1726487597335,9.0962137,2313.8,2313.7,0.12706984]
[1726487597508,9.0962137,2313.8,2313.4,4.32264]
[1726487597509,4.3221,2313.7,2313.4,1.89765135]
[1726487597742,4.3221,2313.7,2313.5,1.46969437]
[1726487597930,4.3221,2313.7,2313.5,0.12706984]
[1726487598157,4.3221,2313.7,2313.3,7.48550723]
[1726487598466,4.3221,2313.7,2313.6,0.12706984]
[1726487598664,4.3221,2313.7,2313.4,2.03515193]
[1726487598962,4.7742137,2313.8,2313.5,1.34249671]
[1726487599149,4.7742137,2313.8,2313.5,0.12706984]
[1726487600626,4.7742137,2313.8,2313.6,1.34231731]
[1726487600827,4.7742137,2313.8,2313.4,2.03515193]
[1726487601040,4.7742137,2313.8,2313.7,0.12706984]
[1726487601625,4.7742137,2313.8,2313.7,0.12283418]
[1726487601826,4.32208,2313.7,2313.5,2.4668]
[1726487602023,4.32208,2313.7,2313.4,0.9054194]
[1726487602332,4.32208,2313.7,2313.5,3.3558055]
[1726487602556,4.32208,2313.7,2313.6,0.11859852]
[1726487602867,4.32208,2313.7,2313.4,0.9054194]
[1726487603027,4.32208,2313.7,2313.6,0.11859852]
[1726487603226,4.32208,2313.7,2313.3,10.04232034]
[1726487603428,4.32208,2313.7,2313.6,0.11859852]
[1726487603677,4.32208,2313.7,2313.3,7.6814494]
[1726487603959,4.32208,2313.7,2313.4,3.35554806]
[1726487604161,4.32208,2313.7,2313.5,1.34221922]
[1726487604362,4.7742137,2313.8,2313.4,5.2280494]
[1726487604552,4.7742137,2313.8,2313.6,0.11859852]
[1726487604759,4.7742137,2313.8,2313.4,5.2280494]
[1726487605067,4.7742137,2313.8,2313.7,0.11859852]
[1726487605285,9.0962537,2313.8,2313.4,5.2280494]
[1726487605444,9.0962537,2313.8,2313.7,0.11859852]
[1726487605772,4.7742137,2313.8,2313.7,0.11859852]
[1726487605978,4.7742137,2313.8,2313.4,5.2280494]
[1726487606137,4.7742137,2313.8,2313.7,0.11859852]
[1726487606334,4.7742137,2313.8,2313.5,0.9054194]
[1726487606575,4.7742137,2313.8,2313.6,3.47370669]
[1726487606739,4.7742137,2313.8,2313.6,0.11859852]
[1726487608485,4.7742137,2313.8,2313.4,5.2280494]
[1726487608686,4.7742137,2313.8,2313.7,0.11859852]
[1726487608895,4.7742137,2313.8,2313.4,5.2280494]
[1726487609194,4.7742137,2313.8,2313.5,4.26067122]
[1726487609400,4.7742137,2313.8,2313.6,3.35521774]
[1726487609598,4.7742137,2313.8,2313.6,0.11865915]
[1726487610351,4.32208,2313.7,2313.6,0.11865915]
[1726487610793,4.32208,2313.7,2313.4,0.9054194]
[1726487611093,4.32208,2313.7,2313.6,0.11865915]
[1726487611295,4.32208,2313.7,2313.6,1.34215363]
[1726487611460,4.32208,2313.7,2313.6,1.46081278]
[1726487613718,4.32208,2313.7,2313.6,3.47405214]
[1726487614305,4.32208,2313.7,2313.6,3.47394897]
[1726487614599,4.32208,2313.7,2313.6,3.47398632]
[1726487614773,4.32208,2313.7,2313.6,3.47396461]
[1726487614975,4.32208,2313.7,2313.6,1.46077508]
[1726487615660,4.32208,2313.7,2313.6,3.47397154]
[1726487616589,4.32208,2313.7,2313.6,3.47406745]
[1726487616959,4.32208,2313.7,2313.6,1.46077508]
[1726487618496,4.32208,2313.7,2313.6,3.47402046]
[1726487619211,4.32208,2313.7,2313.6,3.47411138]
[1726487621473,4.32208,2313.7,2313.6,3.47422681]
[1726487621671,4.32208,2313.7,2313.6,1.46084004]
[1726487622511,9.55376937,2313.7,2313.6,0.11865915]
[1726487623010,4.32274,2313.4,2313.1,3.2329194]
[1726487623193,4.32274,2313.4,2313.2,3.3570425]
[1726487623383,4.32274,2313.4,2313.1,3.2329194]
[1726487623585,4.32274,2313.4,2313.2,3.35694076]
[1726487623915,4.32274,2313.4,2313.1,3.2329194]
[1726487624117,4.32267,2313.4,2313.2,3.35622513]
[1726487624325,4.32292,2313.3,2313.0,0.9054194]
[1726487624498,4.32307,2313.2,2313.1,1.34266593]
[1726487625497,4.32292,2313.3,2313.1,1.34266593]
[1726487625695,4.32292,2313.3,2313.0,3.2276194]
[1726487625696,8.64587,2313.3,2313.0,3.2276194]
[1726487625899,8.64587,2313.3,2313.1,3.35492825]
[1726487626098,8.64587,2313.3,2313.0,3.2276194]
[1726487626315,8.64587,2313.3,2313.1,3.3549466]
[1726487626515,4.32292,2313.3,2313.0,3.2276194]
[1726487626715,4.32292,2313.3,2313.1,1.34199526]
[1726487626929,4.32292,2313.3,2313.0,2.3222]
[1726487627125,4.32292,2313.3,2313.1,1.34179015]
[1726487627316,4.32292,2313.3,2313.0,3.64542375]
[1726487627523,4.32292,2313.3,2313.1,1.34179632]
[1726487627699,4.32292,2313.3,2313.0,3.64542375]
[1726487627903,4.32292,2313.3,2313.1,1.34161438]
[1726487628197,4.32292,2313.3,2313.0,3.64542375]
[1726487628400,4.32265,2313.4,2313.1,1.34167118]
[1726487628641,4.32265,2313.4,2313.0,3.64542375]
[1726487628940,4.32265,2313.4,2313.1,1.34155117]
[1726487629102,4.32265,2313.4,2313.0,3.64542375]
[1726487629304,4.32265,2313.4,2313.1,1.3414973]
[1726487629544,4.32265,2313.4,2313.0,3.64542375]
[1726487629725,4.32265,2313.4,2313.1,1.34141594]
[1726487629926,4.32265,2313.4,2313.0,3.64542375]
[1726487630127,4.32265,2313.4,2313.1,3.35336469]
[1726487630351,4.32265,2313.4,2313.0,4.55084315]
[1726487630549,4.32265,2313.4,2313.1,4.570765]
[1726487630863,4.32265,2313.4,2313.2,1.34133953]
[1726487631081,4.32265,2313.4,2313.1,1.21741617]
[1726487631249,4.32265,2313.4,2313.2,1.34127055]
[1726487631563,4.32265,2313.4,2313.1,1.21741617]
[1726487631763,4.32265,2313.4,2313.2,2.35039408]
[1726487631928,4.32265,2313.4,2313.2,1.00915593]
[1726487634170,4.32265,2313.4,2313.3,0.11921498]
[1726487634377,4.32265,2313.4,2313.0,7.5509194]
[1726487634674,4.32265,2313.4,2313.3,0.11933627]
[1726487635406,4.32265,2313.4,2313.0,7.5509194]
[1726487635609,4.32265,2313.4,2313.3,0.11933627]
[1726487635814,4.32265,2313.4,2313.0,7.5509194]
[1726487635977,4.32265,2313.4,2313.3,0.11933627]
[1726487636310,4.32265,2313.4,2313.0,7.5509194]
[1726487636525,4.32265,2313.4,2313.3,0.11933627]
[1726487636806,4.77480733,2313.5,2313.3,0.11933627]
[1726487637013,0.45233733,2313.5,2313.3,2.3125]
[1726487637175,4.77486733,2313.5,2313.4,0.11933627]
[1726487637699,4.77486733,2313.5,2313.1,6.63569]
[1726487637904,4.77486733,2313.5,2313.4,0.11933627]
[1726487638073,4.77486733,2313.5,2313.1,6.63569]
[1726487638274,4.77486733,2313.5,2313.4,0.11933627]
[1726487638806,4.77486733,2313.5,2313.1,6.63569]
[1726487639110,4.77486733,2313.5,2313.4,0.11933627]
[1726487639319,4.77486733,2313.5,2313.1,8.1521178]
[1726487639473,4.77486733,2313.5,2313.4,0.11933627]
[1726487639681,4.77486733,2313.5,2313.1,6.63569]
[1726487640328,4.77486733,2313.5,2313.2,0.11933627]
[1726487640527,0.45233733,2313.5,2313.2,5.19645721]
[1726487640681,0.45233733,2313.5,2313.2,0.87344721]
[1726487640878,4.77478733,2313.5,2313.2,0.87344721]
[1726487641121,4.77478733,2313.5,2313.2,0.11933627]
[1726487642022,4.77478733,2313.5,2313.3,0.11933627]
[1726487642380,4.77478733,2313.5,2313.0,4.3233]
[1726487642621,4.77478733,2313.5,2313.1,5.78336387]
[1726487642847,4.77478733,2313.5,2313.1,4.44251627]
[1726487644015,4.32279,2313.4,2313.1,0.11933627]
[1726487644239,4.32284,2313.3,2313.1,0.11933627]
[1726487644521,4.32284,2313.3,2312.9,7.5433394]
[1726487644709,4.32284,2313.3,2313.2,0.11932616]
[1726487645055,4.32266,2313.4,2313.2,0.11932616]
[1726487645216,4.32266,2313.4,2313.2,2.2965]
[1726487645418,4.32266,2313.4,2313.3,0.11931604]
[1726487645727,4.77479733,2313.5,2313.3,0.11931604]
[1726487651242,0.45233733,2313.5,2313.3,0.11931604]
[1726487664904,0.45233733,2313.5,2313.3,4.44205604]
[1726487665104,0.45233733,2313.5,2313.4,4.32264]
[1726487665291,4.32193,2313.8,2313.4,10.00956469]
[1726487665517,0.45230874,2313.7,2313.5,1.34173766]
[1726487665698,0.45230874,2313.7,2313.4,6.77464488]
[1726487666029,0.45230874,2313.7,2313.5,0.11920488]
[1726487668427,0.45230874,2313.7,2313.5,4.44162488]
[1726487669243,0.45230874,2313.7,2313.6,1.34217743]
[1726487669540,0.45230874,2313.7,2313.5,4.44162488]
[1726487669726,0.45230874,2313.7,2313.5,4.32242]
[1726487669926,0.45230874,2313.7,2313.6,0.11920488]
[1726487670704,0.45230874,2313.7,2313.6,1.4610418]
[1726487670941,0.45230874,2313.7,2313.6,0.11920488]
[1726487673019,0.45230874,2313.7,2313.4,6.65544]
[1726487673226,0.45230874,2313.7,2313.6,0.11899264]
[1726487673461,0.45230874,2313.7,2313.4,6.65544]
[1726487673656,0.45230874,2313.7,2313.6,0.11899264]
[1726487673868,0.45230874,2313.7,2313.4,4.32264]
[1726487674025,0.45230874,2313.7,2313.6,0.11899264]
[1726487674365,0.45230874,2313.7,2313.4,4.32264]
[1726487674533,0.45230874,2313.7,2313.6,0.11899264]
[1726487674737,0.45230874,2313.7,2313.4,4.32264]
[1726487674958,0.45230874,2313.7,2313.6,0.11899264]
[1726487675126,0.45230874,2313.7,2313.4,4.32264]
[1726487675322,0.45230874,2313.7,2313.6,0.11899264]
[1726487675534,0.45230874,2313.7,2313.4,4.32264]
[1726487675726,0.45230874,2313.7,2313.6,0.11899264]
[1726487675933,0.45230874,2313.7,2313.4,4.32264]
[1726487676161,0.45230874,2313.7,2313.6,0.11899264]
[1726487676679,0.45230874,2313.7,2313.4,5.64703675]
[1726487676830,0.45230874,2313.7,2313.6,0.11899264]
[1726487677030,0.45230874,2313.7,2313.4,4.32264]
[1726487677231,0.45230874,2313.7,2313.6,0.11899264]
[1726487677465,0.45230874,2313.7,2313.4,4.32264]
[1726487677764,0.45230874,2313.7,2313.6,0.11899264]
[1726487677967,0.45230874,2313.7,2313.4,4.32264]
[1726487678178,0.45230874,2313.7,2313.6,0.11899264]
[1726487678671,4.77438874,2313.7,2313.3,0.9054194]
[1726487678871,4.77438874,2313.7,2313.6,0.11899264]
[1726487679079,4.77438874,2313.7,2313.2,11.8868094]
[1726487679232,4.77438874,2313.7,2313.6,0.11899264]
[1726487679431,4.77438874,2313.7,2313.2,10.00355528]
[1726487679432,4.32229,2313.6,2313.2,10.00355528]
[1726487679774,4.32229,2313.6,2313.3,3.35544445]
[1726487679970,4.32229,2313.6,2313.4,1.34217778]
[1726487680161,4.32229,2313.6,2313.3,1.33033139]
[1726487680365,4.32229,2313.6,2313.4,1.34216523]
[1726487680605,4.32229,2313.6,2313.3,1.33033139]
[1726487680806,4.32229,2313.6,2313.4,1.34212968]
[1726487681019,4.32229,2313.6,2313.3,1.33033139]
[1726487681313,4.32229,2313.6,2313.4,1.34213597]
[1726487681513,4.32229,2313.6,2313.3,1.33033139]
[1726487681724,4.32229,2313.6,2313.4,1.34211036]
[1726487681881,4.32229,2313.6,2313.3,1.33033139]
[1726487682081,4.32229,2313.6,2313.4,1.34209009]
[1726487682282,4.32229,2313.6,2313.3,1.33033139]
[1726487682477,4.32229,2313.6,2313.4,1.34204919]
[1726487682716,4.32229,2313.6,2313.3,1.33033139]
[1726487683020,4.32229,2313.6,2313.4,1.34206647]
[1726487683183,4.32229,2313.6,2313.3,1.33033139]
[1726487683522,4.32229,2313.6,2313.4,1.34207146]
[1726487683687,4.32229,2313.6,2313.3,1.33033139]
[1726487683888,4.32262,2313.5,2313.1,0.9054194]
[1726487684216,4.32262,2313.5,2313.2,3.3557886]
[1726487684442,4.32262,2313.5,2313.3,1.34223071]
[1726487684753,4.32262,2313.5,2313.2,0.53446291]
[1726487685043,4.32262,2313.5,2313.3,1.34223049]
[1726487685212,4.32262,2313.5,2313.2,0.53446291]
[1726487685406,4.32262,2313.5,2313.3,1.34223649]
[1726487685740,4.32262,2313.5,2313.2,0.53446291]
[1726487685942,4.32262,2313.5,2313.3,1.34229833]
[1726487686089,4.32262,2313.5,2313.1,5.2286094]
[1726487686429,4.32262,2313.5,2313.2,3.35578657]
[1726487686721,4.32262,2313.5,2313.1,6.93685328]
[1726487686928,4.32262,2313.5,2313.2,3.35583997]
[1726487687131,4.32262,2313.5,2313.3,3.82323677]
[1726487687299,4.32262,2313.5,2313.3,2.4809]
[1726487687954,4.32262,2313.5,2313.1,9.41775328]
[1726487688104,4.32255,2313.5,2313.2,3.3560474]
[1726487688431,4.32255,2313.5,2313.1,9.41775328]
[1726487688725,4.32255,2313.5,2313.2,3.35604053]
[1726487688929,4.32255,2313.5,2313.1,3.3863194]
[1726487689103,4.32273,2313.4,2313.2,3.35614233]
[1726487689288,4.32273,2313.4,2313.1,0.9054194]
[1726487689492,4.32273,2313.4,2313.2,3.3561967]
[1726487689713,4.32273,2313.4,2313.1,0.9054194]
[1726487689932,4.32273,2313.4,2313.2,3.3562177]
[1726487690087,4.32273,2313.4,2313.1,0.9054194]
[1726487690292,4.32273,2313.4,2313.2,3.35623775]
[1726487690519,4.32273,2313.4,2313.1,1.98413223]
[1726487690726,4.32273,2313.4,2313.2,3.35633888]
[1726487690899,4.32273,2313.4,2313.1,1.98413223]
[1726487691103,4.32273,2313.4,2313.2,3.35636638]
[1726487691417,4.32273,2313.4,2313.1,1.98413223]
[1726487691623,4.32273,2313.4,2313.2,3.35642035]
[1726487691830,4.32273,2313.4,2313.1,1.98413223]
[1726487692034,4.32273,2313.4,2313.2,3.35643333]
[1726487692341,4.32273,2313.4,2313.1,1.98413223]
[1726487692538,4.32273,2313.4,2313.2,3.35637356]
[1726487692840,4.32273,2313.4,2313.1,1.98413223]
[1726487693005,4.32273,2313.4,2313.2,1.34259488]
[1726487693204,4.32273,2313.4,2313.1,1.98413223]
[1726487693416,4.32291,2313.3,2313.0,0.9054194]
[1726487693602,4.32311,2313.2,2313.1,3.35673313]
[1726487693942,4.32311,2313.2,2313.1,1.34269325]
[1726487694115,4.32311,2313.2,2312.9,3.2965194]
[1726487694299,4.32311,2313.2,2313.1,0.11897241]
[1726487694496,4.32311,2313.2,2313.1,1.34277937]
[1726487694736,4.32311,2313.2,2313.1,1.46175178]
[1726487694946,4.32311,2313.2,2313.1,0.11897241]
[1726487695242,4.32311,2313.2,2312.9,3.2965194]
[1726487695477,4.32285,2313.3,2313.1,0.11897241]
[1726487695610,4.32255,2313.5,2312.9,10.06707264]
[1726487695817,4.32255,2313.5,2313.1,2.3688]
[1726487696126,4.32255,2313.5,2313.2,1.46193813]
[1726487696330,4.32255,2313.5,2313.2,0.11943734]
[1726487696506,4.32255,2313.5,2313.2,1.43768522]
[1726487696846,4.32255,2313.5,2313.3,2.4004]
[1726487697003,4.32255,2313.5,2313.3,2.51982723]
[1726487697514,8.64515,2313.5,2313.3,0.11942723]
[1726487697699,8.64515,2313.5,2313.1,6.66291]
[1726487697902,4.32255,2313.5,2313.4,0.11942723]
[1726487698137,4.32255,2313.5,2313.1,6.66291]
[1726487698355,4.32255,2313.5,2313.4,0.11942723]
[1726487698803,4.32255,2313.5,2313.1,7.5683294]
[1726487699004,4.32255,2313.5,2313.2,4.37661498]
[1726487699254,4.32255,2313.5,2313.2,1.02064747]
[1726487699452,4.32255,2313.5,2313.2,0.11942723]
[1726487700529,4.32229,2313.6,2313.2,0.11942723]
[1726487700774,4.32229,2313.6,2313.3,2.3458]
[1726487700933,3.0,2313.6,2313.3,6.66859]
[1726487701140,0.45230874,2313.7,2313.4,1.32095071]
[1726487701960,0.45230874,2313.7,2313.4,5.64357071]
[1726487702143,0.45230874,2313.7,2313.4,1.32095071]
[1726487702963,0.45230874,2313.7,2313.5,2.4687]
[1726487703473,0.45230874,2313.7,2313.6,0.11931605]
[1726487709637,0.45230874,2313.7,2313.4,5.52425466]
[1726487709979,0.45230874,2313.7,2313.6,0.11931605]
[1726487710187,4.32227,2313.6,2313.3,0.9054194]
[1726487710538,4.32227,2313.6,2313.2,5.2283894]
[1726487710694,4.32227,2313.6,2313.3,1.34130233]
[1726487710848,4.77440874,2313.7,2313.3,4.32279]
[1726487711053,4.77440874,2313.7,2313.4,2.3696]
[1726487712161,4.77440874,2313.7,2313.3,5.86485928]
[1726487712394,4.77440874,2313.7,2313.2,11.8820094]
[1726487712571,4.77440874,2313.7,2313.3,3.35304674]
[1726487712777,4.77440874,2313.7,2313.4,1.34123109]
[1726487712993,4.77440874,2313.7,2313.2,11.8819694]
[1726487713179,4.77440874,2313.7,2313.3,3.35305653]
[1726487713502,0.45230874,2313.7,2313.5,2.325]
[1726487719481,0.45230874,2313.7,2313.3,7.5158694]
[1726487719681,0.45230874,2313.7,2313.4,3.3549628]
[1726487719881,0.45230874,2313.7,2313.3,7.5158694]
[1726487720085,0.45230874,2313.7,2313.4,3.35493215]
[1726487720282,0.45230874,2313.7,2313.3,11.8386094]
[1726487720521,0.45230874,2313.7,2313.4,3.35497731]
[1726487720719,0.45230874,2313.7,2313.3,13.2905307]
[1726487721007,0.45230874,2313.7,2313.4,3.35486986]
[1726487721205,0.45230874,2313.7,2313.3,13.2905307]
[1726487721518,0.45230874,2313.7,2313.4,3.35499941]
[1726487721697,0.45230874,2313.7,2313.3,13.2905207]
[1726487721910,0.45230874,2313.7,2313.4,3.35502103]
[1726487722122,0.45230874,2313.7,2313.3,13.2905207]
[1726487722404,0.45230874,2313.7,2313.4,3.3550837]
[1726487722619,0.45230874,2313.7,2313.3,8.9677807]
[1726487722826,0.45230874,2313.7,2313.4,4.97029689]
[1726487723014,0.45230874,2313.7,2313.4,1.61528666]
[1726487724292,0.45230874,2313.7,2313.5,0.11860861]
[1726487724927,0.45230874,2313.7,2313.3,7.5158594]
[1726487725100,4.3223,2313.6,2313.4,1.34207585]
[1726487725303,8.64474,2313.6,2313.2,0.9054194]
[1726487725492,8.64474,2313.6,2313.3,3.35522802]
[1726487725687,8.64474,2313.6,2313.2,0.9054194]
[1726487725925,4.3223,2313.6,2313.3,3.35529347]
[1726487726087,4.3223,2313.6,2313.2,0.9054194]
[1726487726287,4.3223,2313.6,2313.3,3.35532395]
[1726487726611,4.3223,2313.6,2313.4,1.34213043]
[1726487726822,4.3223,2313.6,2313.2,0.9054194]
[1726487727119,4.3223,2313.6,2313.3,3.35541891]
[1726487727285,4.3223,2313.6,2313.4,1.34211414]
[1726487727485,4.3223,2313.6,2313.2,0.9054194]
[1726487727729,4.77440874,2313.7,2313.3,7.67819628]
[1726487728024,4.77440874,2313.7,2313.4,1.34212071]
[1726487728223,4.32227,2313.6,2313.2,6.73410323]
[1726487728528,4.32227,2313.6,2313.3,3.35533043]
[1726487728703,4.32227,2313.6,2313.2,6.73410323]
[1726487728903,4.32227,2313.6,2313.3,3.3553738]
[1726487729104,8.64465,2313.6,2313.2,2.41116323]
[1726487729319,8.64465,2313.6,2313.3,3.35550215]
[1726487729524,8.64465,2313.6,2313.2,2.41116323]
[1726487729724,8.64465,2313.6,2313.3,1.34218927]
[1726487729926,8.64465,2313.6,2313.2,2.41116323]
[1726487730097,4.32227,2313.6,2313.3,3.3555105]
[1726487730296,4.32227,2313.6,2313.2,2.41116323]
[1726487730515,4.32227,2313.6,2313.3,3.35554748]
[1726487730799,4.32227,2313.6,2313.2,1.50574383]
[1726487730998,4.32227,2313.6,2313.3,1.34225169]
[1726487731295,4.32227,2313.6,2313.2,1.50574383]
[1726487731495,4.32227,2313.6,2313.3,1.34242818]
[1726487731721,4.32227,2313.6,2313.2,1.50574383]
[1726487731935,4.32227,2313.6,2313.3,1.91432276]
[1726487732133,4.32227,2313.6,2313.3,0.57190154]
[1726487732319,8.64465,2313.6,2313.2,1.50574383]
[1726487732629,8.64465,2313.6,2313.3,1.34243781]
[1726487732835,8.64465,2313.6,2313.2,1.50574383]
[1726487733062,8.64465,2313.6,2313.3,1.34243665]
[1726487733239,8.64465,2313.6,2313.2,1.50574383]
[1726487733440,8.64465,2313.6,2313.3,1.34243551]
[1726487733620,8.64465,2313.6,2313.2,2.41116323]
[1726487733952,8.64465,2313.6,2313.3,1.34239853]
[1726487734114,8.64465,2313.6,2313.1,7.5667894]
[1726487734298,8.64465,2313.6,2313.2,3.35604038]
[1726487734503,8.64465,2313.6,2313.3,1.34241615]
[1726487734802,8.64465,2313.6,2313.1,10.00675928]
[1726487735023,8.64465,2313.6,2313.2,3.349732]
[1726487735229,8.64465,2313.6,2313.4,2.4133]
[1726487735230,4.3223,2313.6,2313.4,2.4133]
[1726487735603,4.3223,2313.6,2313.2,6.22667694]
[1726487735804,4.3223,2313.6,2313.3,3.34983155]
[1726487736004,4.77441874,2313.7,2313.4,1.33993262]
[1726487736210,4.77441874,2313.7,2313.3,1.51745248]
[1726487736413,4.77441874,2313.7,2313.4,1.33990747]
[1726487736618,4.32231,2313.6,2313.3,1.51745248]
[1726487736836,4.32231,2313.6,2313.4,1.33950466]
[1726487737155,4.32231,2313.6,2313.3,2.42287188]
[1726487737475,4.32231,2313.6,2313.4,3.34878794]
[1726487737618,4.32231,2313.6,2313.3,1.51745248]
[1726487737819,4.32231,2313.6,2313.4,1.33957498]